fUSD/lending_fUSD_20240419
["ID","MTS","AMOUNT","RATE_DAILY","PERIOD"]
[322979350,1713556277516,-1861.46,0.00016986,2]
[322979351,1713556277525,-592.63,0.00016986,2]
[322979352,1713556277535,-1174.28,0.00016986,2]
[322979353,1713556277545,-3156.98,0.00016986,2]
[322979354,1713556277554,-500.0,0.00016986,2]
[322979355,1713556277564,-500.0,0.00016986,2]
[322979356,1713556277574,-155.5497331,0.00016986,2]
[322979357,1713556277583,-500.0,0.00016986,2]
[322979358,1713556277594,-500.0,0.00016986,2]
[322979359,1713556277603,-6483.13,0.00016986,2]
[322979360,1713556277613,-748.0,0.00016986,2]
[322979361,1713556277622,-629.19668958,0.00016986,2]
[322979362,1713556277632,-703.41,0.00016986,2]
[322979363,1713556277642,-1379.49,0.00016986,2]
[322979364,1713556277651,-2676.88,0.00016986,2]
[322979365,1713556277661,-500.0,0.00016986,2]
[322979366,1713556277671,-739.47,0.00016986,2]
[322979367,1713556277681,-2745.05,0.00016986,2]
[322979368,1713556277689,-2195.86,0.00016986,2]
[322979369,1713556277699,-651.59,0.00016986,2]
[322979370,1713556277708,-5306.79,0.00016986,2]
[322979371,1713556277718,-500.0,0.00016986,2]
[322979372,1713556277728,-1908.87,0.00016986,2]
[322979373,1713556277738,-500.0,0.00016986,2]
[322979374,1713556277747,-585.51,0.00016986,2]
[322979375,1713556277757,-500.0,0.00016986,2]
[322979376,1713556277767,-703.75,0.00016986,2]
[322979377,1713556277777,-500.0,0.00016986,2]
[322979378,1713556277786,-602.05,0.00016986,2]
[322979379,1713556277796,-500.0,0.00016986,2]
[322979380,1713556277806,-1407.14,0.00016986,2]
[322979381,1713556277815,-1086.28,0.00016986,2]
[322979382,1713556277825,-1966.91,0.00016986,2]
[322979383,1713556277836,-9533.45,0.00016986,2]
[322979384,1713556277845,-573.26,0.00016986,2]
[322979385,1713556277855,-500.0,0.00016986,2]
[322979386,1713556277865,-838.14,0.00016986,2]
[322979387,1713556277874,-500.0,0.00016986,2]
[322979388,1713556277883,-2212.17,0.00016986,2]
[322979389,1713556277893,-3350.95,0.00016986,2]
[322979390,1713556277902,-581.92,0.00016986,2]
[322979391,1713556277912,-500.0,0.00016986,2]
[322979392,1713556277922,-156.37480316,0.00016986,2]
[322979393,1713556277931,-834.41,0.00016986,2]
[322979394,1713556277941,-500.0,0.00016986,2]
[322979395,1713556277950,-965.79,0.00016986,2]
[322979396,1713556277960,-500.0,0.00016986,2]
[322979397,1713556277970,-500.0,0.00016986,2]
[322979398,1713556277978,-2036.77,0.00016986,2]
[322979399,1713556277988,-11612.85,0.00016986,2]
[322979400,1713556277997,-1007.38,0.00016986,2]
[322979401,1713556278007,-903.76,0.00016986,2]
[322979402,1713556278016,-2307.41,0.00016986,2]
[322979403,1713556278028,-500.0,0.00016986,2]
[322979404,1713556278038,-783.96,0.00016986,2]
[322979405,1713556278051,-500.0,0.00016986,2]
[322979406,1713556278061,-1326.51,0.00016986,2]
[322979407,1713556278070,-1707.38,0.00016986,2]
[322979408,1713556278080,-3780.04,0.00016986,2]
[322979409,1713556278090,-500.0,0.00016986,2]
[322979410,1713556278100,-766.89,0.00016986,2]
[322979411,1713556278110,-3484.61,0.00016986,2]
[322979412,1713556278119,-500.0,0.00016986,2]
[322979413,1713556278129,-500.0,0.00016986,2]
[322979414,1713556278138,-500.0,0.00016986,2]
[322979415,1713556278148,-531.48,0.00016986,2]
[322979416,1713556278157,-500.0,0.00016986,2]
[322979417,1713556278166,-500.0,0.00016986,2]
[322979418,1713556278176,-500.0,0.00016986,2]
[322979419,1713556278185,-6487.58,0.00016986,2]
[322979420,1713556278195,-5689.21,0.00016986,2]
[322979421,1713556278205,-1888.37,0.00016986,2]
[322979422,1713556278214,-4463.69,0.00016986,2]
[322979423,1713556278224,-1037.22,0.00016986,2]
[322979424,1713556278233,-500.0,0.00016986,2]
[322979425,1713556278242,-500.0,0.00016986,2]
[322979426,1713556278252,-1088.88,0.00016986,2]
[322979427,1713556278261,-1774.34,0.00016986,2]
[322979428,1713556278271,-500.0,0.00016986,2]
[322979429,1713556278279,-500.0,0.00016986,2]
[322979430,1713556278289,-3007.51,0.00016986,2]
[322979431,1713556278298,-521.45665024,0.00017,2]
[322979432,1713556278307,-1300.0,0.00017,2]
[322979433,1713556278316,-415.55818445,0.00017,2]
[322979434,1713556278325,-415.55818445,0.00017,2]
[322979435,1713556278335,-415.55818445,0.00017,2]
[322979436,1713556278345,-150.0,0.00017,2]
[322979437,1713556278354,-222.04450963,0.00017,2]
[322979438,1713556278364,-222.04450963,0.00017,2]
[322979439,1713556278373,-222.04450963,0.00017,2]
[322979440,1713556278382,-222.04450963,0.00017,2]
[322979441,1713556278392,-222.04450963,0.00017,2]
[322979442,1713556278401,-222.04450963,0.00017,2]
[322979443,1713556278410,-222.04450963,0.00017,2]
[322979444,1713556278420,-222.04450963,0.00017,2]
[322979445,1713556278429,-222.04450963,0.00017,2]
[322979446,1713556278440,-222.04450963,0.00017,2]
[322979447,1713556278451,-222.04450963,0.00017,2]
[322979448,1713556278460,-222.04450963,0.00017,2]
[322979449,1713556278470,-222.04450963,0.00017,2]
[322979450,1713556278479,-222.04450963,0.00017,2]
[322979451,1713556278489,-222.04450963,0.00017,2]
[322979452,1713556278499,-222.04450963,0.00017,2]
[322979453,1713556278509,-222.04450963,0.00017,2]
[322979454,1713556278519,-222.04450963,0.00017,2]
[322979455,1713556278528,-222.04450963,0.00017,2]
[322979456,1713556278538,-222.04450963,0.00017,2]
[322979457,1713556278547,-222.04450963,0.00017,2]
[322979458,1713556278557,-222.04450963,0.00017,2]
[322979459,1713556278567,-222.04450963,0.00017,2]
[322979460,1713556278577,-222.04450963,0.00017,2]
[322979461,1713556278587,-222.04450963,0.00017,2]
[322979462,1713556278596,-222.04450963,0.00017,2]
[322979463,1713556278606,-222.04450963,0.00017,2]
[322979464,1713556278616,-222.04450963,0.00017,2]
[322979465,1713556278626,-222.04450963,0.00017,2]
[322979466,1713556278635,-222.04450963,0.00017,2]
[322979467,1713556278645,-222.04450963,0.00017,2]
[322979468,1713556278654,-222.04450963,0.00017,2]
[322979469,1713556278664,-222.04450963,0.00017,2]
[322979470,1713556278674,-222.04450963,0.00017,2]
[322979471,1713556278683,-222.04450963,0.00017,2]
[322979472,1713556278693,-222.04450963,0.00017,2]
[322979473,1713556278703,-222.04450963,0.00017,2]
[322979474,1713556278712,-222.04450963,0.00017,2]
[322979475,1713556278722,-222.04450963,0.00017,2]
[322979476,1713556278731,-222.04450963,0.00017,2]
[322979477,1713556278741,-222.04450963,0.00017,2]
[322979478,1713556278750,-222.04450963,0.00017,2]
[322979479,1713556278760,-222.04450963,0.00017,2]
[322979480,1713556278769,-222.04450963,0.00017,2]
[322979481,1713556278779,-222.04450963,0.00017,2]
[322979482,1713556278788,-222.04450963,0.00017,2]
[322979483,1713556278798,-222.04450963,0.00017,2]
[322979484,1713556278807,-222.04450963,0.00017,2]
[322979485,1713556278817,-222.04450963,0.00017,2]
[322979486,1713556278827,-222.04450963,0.00017,2]
[322979487,1713556278837,-222.04450963,0.00017,2]
[322979488,1713556278847,-222.04450963,0.00017,2]
[322979489,1713556278857,-222.04450963,0.00017,2]
[322979490,1713556278867,-222.04450963,0.00017,2]
[322979491,1713556278876,-222.04450963,0.00017,2]
[322979492,1713556278885,-222.04450963,0.00017,2]
[322979493,1713556278895,-11479.47900566,0.00017039,2]
[322979494,1713556278905,-200.0,0.00017121,2]
[322979495,1713556278914,-1000.0,0.00017121,2]
[322979496,1713556278923,-500.0,0.00017121,2]
[322979497,1713556278933,-167.0,0.00017137,2]
[322979498,1713556278942,-482.0,0.000172,2]
[322979499,1713556278951,-5358.6751697,0.00017247,2]
[322979500,1713556278961,-7411.537593,0.00017248,2]
[322979501,1713556278971,-44023.4159545,0.00017248,2]
[322979502,1713556278980,-174.8907782,0.00017257,2]
[322979503,1713556278989,-3686.448,0.0001726,2]
[322979504,1713556278998,-498.293292,0.0001726,2]
[322979505,1713556279008,-500.0,0.0001726,2]
[322979506,1713556279017,-500.0,0.0001726,2]
[322979507,1713556279030,-500.0,0.0001726,2]
[322979508,1713556279039,-775.86,0.0001726,2]
[322979509,1713556279049,-500.05,0.0001726,2]
[322979510,1713556279058,-500.0,0.0001726,2]
[322979511,1713556279069,-500.0,0.0001726,2]
[322979512,1713556279078,-500.0,0.0001726,2]
[322979513,1713556279092,-500.3,0.0001726,2]
[322979514,1713556279104,-524.36,0.0001726,2]
[322979515,1713556279116,-500.0,0.0001726,2]
[322979516,1713556279125,-500.0,0.0001726,2]
[322979517,1713556279134,-500.0,0.0001726,2]
[322979518,1713556279144,-500.0,0.0001726,2]
[322979519,1713556279153,-805.65,0.0001726,2]
[322979520,1713556279163,-500.0,0.0001726,2]
[322979521,1713556279172,-500.0,0.0001726,2]
[322979522,1713556279182,-656.97,0.0001726,2]
[322979523,1713556279192,-577.04,0.0001726,2]
[322979524,1713556279202,-703.81,0.0001726,2]
[322979525,1713556279211,-504.0,0.0001726,2]
[322979526,1713556279220,-500.0,0.0001726,2]
[322979527,1713556279230,-500.0,0.0001726,2]
[322979528,1713556279240,-500.0,0.0001726,2]
[322979529,1713556279249,-500.0,0.0001726,2]
[322979530,1713556279259,-500.0,0.0001726,2]
[322979531,1713556279268,-544.31,0.0001726,2]
[322979532,1713556279278,-500.0,0.0001726,2]
[322979533,1713556279287,-500.0,0.0001726,2]
[322979534,1713556279296,-500.0,0.0001726,2]
[322979535,1713556279306,-500.0,0.0001726,2]
[322979536,1713556279315,-500.0,0.0001726,2]
[322979537,1713556279324,-500.0,0.0001726,2]
[322979538,1713556279416,-500.0,0.0001726,2]
[322979539,1713556279426,-500.0,0.0001726,2]
[322979540,1713556279436,-500.0,0.0001726,2]
[322979541,1713556279446,-500.0,0.0001726,2]
[322979542,1713556279455,-569.27,0.0001726,2]
[322979543,1713556279465,-1111.55,0.0001726,2]
[322979544,1713556279474,-500.0,0.0001726,2]
[322979545,1713556279483,-500.0,0.0001726,2]
[322979546,1713556279493,-500.0,0.0001726,2]
[322979547,1713556279502,-500.0,0.0001726,2]
[322979548,1713556279511,-500.0,0.0001726,2]
[322979549,1713556279520,-500.0,0.0001726,2]
[322979550,1713556279529,-500.0,0.0001726,2]
[322979551,1713556279539,-500.0,0.0001726,2]
[322979552,1713556279548,-626.82,0.0001726,2]
[322979553,1713556279557,-1023.08,0.0001726,2]
[322979554,1713556279567,-500.0,0.0001726,2]
[322979555,1713556279576,-500.0,0.0001726,2]
[322979556,1713556279587,-500.0,0.0001726,2]
[322979557,1713556279596,-500.0,0.0001726,2]
[322979558,1713556279606,-871.23,0.0001726,2]
[322979559,1713556279615,-818.57,0.0001726,2]
[322979560,1713556279625,-655.24,0.0001726,2]
[322979561,1713556279635,-704.43,0.0001726,2]
[322979562,1713556279644,-500.0,0.0001726,2]
[322979563,1713556279654,-500.0,0.0001726,2]
[322979564,1713556279663,-500.0,0.0001726,2]
[322979565,1713556279673,-743.48,0.0001726,2]
[322979566,1713556279683,-500.0,0.0001726,2]
[322979567,1713556279693,-500.0,0.0001726,2]
[322979568,1713556279703,-500.0,0.0001726,2]
[322979569,1713556279712,-500.0,0.0001726,2]
[322979570,1713556279721,-500.0,0.0001726,2]
[322979571,1713556279731,-500.0,0.0001726,2]
[322979572,1713556279740,-500.0,0.0001726,2]
[322979573,1713556279750,-556.74,0.0001726,2]
[322979574,1713556279759,-500.0,0.0001726,2]
[322979575,1713556279769,-979.53,0.0001726,2]
[322979576,1713556279781,-518.79,0.0001726,2]
[322979577,1713556279791,-517.28,0.0001726,2]
[322979578,1713556279802,-612.1,0.0001726,2]
[322979579,1713556279813,-500.0,0.0001726,2]
[322979580,1713556279823,-647.92,0.0001726,2]
[322979581,1713556279833,-500.0,0.0001726,2]
[322979582,1713556279843,-500.0,0.0001726,2]
[322979583,1713556279854,-500.0,0.0001726,2]
[322979584,1713556279863,-500.0,0.0001726,2]
[322979585,1713556279873,-500.0,0.0001726,2]
[322979586,1713556279883,-667.48,0.0001726,2]
[322979587,1713556279893,-500.0,0.0001726,2]
[322979588,1713556279902,-500.0,0.0001726,2]
[322979589,1713556279911,-500.0,0.0001726,2]
[322979590,1713556279921,-500.0,0.0001726,2]
[322979591,1713556279930,-500.0,0.0001726,2]
[322979592,1713556279939,-856.04,0.0001726,2]
[322979593,1713556279949,-1301.36,0.0001726,2]
[322979594,1713556279959,-500.0,0.0001726,2]
[322979595,1713556279969,-500.0,0.0001726,2]
[322979596,1713556279978,-770.58,0.0001726,2]
[322979597,1713556279987,-500.0,0.0001726,2]
[322979598,1713556279997,-572.0,0.0001726,2]
[322979599,1713556280006,-500.0,0.0001726,2]
[322979600,1713556280016,-500.0,0.0001726,2]
[322979601,1713556280026,-634.66,0.0001726,2]
[322979602,1713556280036,-500.0,0.0001726,2]
[322979603,1713556280052,-500.0,0.0001726,2]
[322979604,1713556280062,-574.0,0.0001726,2]
[322979605,1713556280072,-529.7,0.0001726,2]
[322979606,1713556280085,-500.0,0.0001726,2]
[322979607,1713556280095,-500.0,0.0001726,2]
[322979608,1713556280105,-500.0,0.0001726,2]
[322979609,1713556280116,-500.0,0.0001726,2]
[322979610,1713556280127,-588.39,0.0001726,2]
[322979611,1713556280136,-500.0,0.0001726,2]
[322979612,1713556280146,-500.0,0.0001726,2]
[322979613,1713556280156,-500.0,0.0001726,2]
[322979614,1713556280165,-605.36,0.0001726,2]
[322979615,1713556280175,-500.0,0.0001726,2]
[322979616,1713556280186,-388.90521126,0.0001726,2]
[322979617,1713556280196,-500.0,0.0001726,2]
[322979618,1713556280206,-283.44622598,0.0001726,2]
[322979619,1713556280216,-500.0,0.0001726,2]
[322979620,1713556280226,-500.0,0.0001726,2]
[322979621,1713556280235,-500.0,0.0001726,2]
[322979622,1713556280245,-500.0,0.0001726,2]
[322979623,1713556280255,-500.0,0.0001726,2]
[322979624,1713556280264,-862.12,0.0001726,2]
[322979625,1713556280274,-500.0,0.0001726,2]
[322979626,1713556280284,-848.83,0.0001726,2]
[322979627,1713556280293,-500.0,0.0001726,2]
[322979628,1713556280302,-500.0,0.0001726,2]
[322979629,1713556280312,-500.0,0.0001726,2]
[322979630,1713556280321,-500.0,0.0001726,2]
[322979631,1713556280331,-648.19,0.0001726,2]
[322979632,1713556280341,-500.0,0.0001726,2]
[322979633,1713556280350,-700.55,0.0001726,2]
[322979634,1713556280360,-500.0,0.0001726,2]
[322979635,1713556280369,-1078.38,0.0001726,2]
[322979636,1713556280378,-669.49,0.0001726,2]
[322979637,1713556280387,-500.0,0.0001726,2]
[322979638,1713556280397,-841.29,0.0001726,2]
[322979639,1713556280406,-500.0,0.0001726,2]
[322979640,1713556280416,-725.77,0.0001726,2]
[322979641,1713556280426,-500.0,0.0001726,2]
[322979642,1713556280435,-500.0,0.0001726,2]
[322979643,1713556280448,-500.0,0.0001726,2]
[322979644,1713556280457,-634.45,0.0001726,2]
[322979645,1713556280467,-500.0,0.0001726,2]
[322979646,1713556280476,-815.9,0.0001726,2]
[322979647,1713556280486,-500.0,0.0001726,2]
[322979648,1713556280496,-528.23,0.0001726,2]
[322979649,1713556280505,-776.0,0.0001726,2]
[322979650,1713556280515,-500.0,0.0001726,2]
[322979651,1713556280525,-522.65,0.0001726,2]
[322979652,1713556280535,-939.36,0.0001726,2]
[322979653,1713556280545,-831.91,0.0001726,2]
[322979654,1713556280555,-500.0,0.0001726,2]
[322979655,1713556280566,-500.0,0.0001726,2]
[322979656,1713556280602,-500.0,0.0001726,2]
[322979657,1713556280619,-976.26,0.0001726,2]
[322979658,1713556280629,-1075.92,0.0001726,2]
[322979659,1713556280639,-770.87,0.0001726,2]
[322979660,1713556280649,-500.0,0.0001726,2]
[322979661,1713556280659,-977.16,0.0001726,2]
[322979662,1713556280669,-514.7,0.0001726,2]
[322979663,1713556280679,-1077.57,0.0001726,2]
[322979664,1713556280689,-1254.21,0.0001726,2]
[322979665,1713556280700,-500.0,0.0001726,2]
[322979666,1713556280710,-511.15,0.0001726,2]
[322979667,1713556280720,-500.0,0.0001726,2]
[322979668,1713556280731,-280.42161682,0.0001726,2]
[322979669,1713556280741,-563.59,0.0001726,2]
[322979670,1713556280751,-706.73,0.0001726,2]
[322979671,1713556280761,-500.0,0.0001726,2]
[322979672,1713556280771,-1449.18,0.0001726,2]
[322979673,1713556280782,-500.0,0.0001726,2]
[322979674,1713556280791,-500.0,0.0001726,2]
[322979675,1713556280801,-500.0,0.0001726,2]
[322979676,1713556280811,-939.55,0.0001726,2]
[322979677,1713556280821,-578.99,0.0001726,2]
[322979678,1713556280830,-724.74,0.0001726,2]
[322979679,1713556280842,-570.09414094,0.0001726,2]
[322979680,1713556280852,-820.92,0.0001726,2]
[322979681,1713556280862,-916.07,0.0001726,2]
[322979682,1713556280872,-1180.26,0.0001726,2]
[322979683,1713556280882,-1070.0,0.0001726,2]
[322979684,1713556280891,-500.0,0.0001726,2]
[322979685,1713556280900,-698.77,0.0001726,2]
[322979686,1713556280908,-500.0,0.0001726,2]
[322979687,1713556280917,-524.46,0.0001726,2]
[322979688,1713556280927,-608.99,0.0001726,2]
[322979689,1713556280936,-735.41,0.0001726,2]
[322979690,1713556280946,-588.41,0.0001726,2]
[322979691,1713556280955,-637.72,0.0001726,2]
[322979692,1713556280966,-506.33,0.0001726,2]
[322979693,1713556280975,-1640.11,0.0001726,2]
[322979694,1713556280985,-981.84,0.0001726,2]
[322979695,1713556280995,-500.0,0.0001726,2]
[322979696,1713556281005,-1476.05,0.0001726,2]
[322979697,1713556281015,-1663.24,0.0001726,2]
[322979698,1713556281028,-542.07,0.0001726,2]
[322979699,1713556281038,-703.21,0.0001726,2]
[322979700,1713556281048,-231.71995881,0.0001726,2]
[322979701,1713556281057,-1739.58,0.0001726,2]
[322979702,1713556281069,-1441.3,0.0001726,2]
[322979703,1713556281079,-423.74964948,0.0001726,2]
[322979704,1713556281769,-76.25035052,0.0001726,2]
[322979705,1713556281779,-1388.44,0.0001726,2]
[322979706,1713556281789,-500.0,0.0001726,2]
[322979707,1713556281798,-804.94,0.0001726,2]
[322979708,1713556281807,-549.41,0.0001726,2]
[322979709,1713556281817,-1074.95,0.0001726,2]
[322979710,1713556281827,-500.0,0.0001726,2]
[322979711,1713556281836,-174.54364844,0.0001726,2]
[322979712,1713556281847,-874.69,0.0001726,2]
[322979713,1713556281856,-501.2,0.0001726,2]
[322979714,1713556281866,-500.0,0.0001726,2]
[322979715,1713556281875,-750.3,0.0001726,2]
[322979716,1713556281885,-500.0,0.0001726,2]
[322979717,1713556281894,-500.0,0.0001726,2]
[322979718,1713556281904,-500.0,0.0001726,2]
[322979719,1713556281913,-1156.52,0.0001726,2]
[322979720,1713556281922,-500.0,0.0001726,2]
[322979721,1713556281931,-500.0,0.0001726,2]
[322979722,1713556281940,-693.11,0.0001726,2]
[322979723,1713556281951,-500.0,0.0001726,2]
[322979724,1713556281961,-868.39,0.0001726,2]
[322979725,1713556281970,-500.0,0.0001726,2]
[322979726,1713556281979,-1068.03,0.0001726,2]
[322979727,1713556281988,-735.28,0.0001726,2]
[322979728,1713556281997,-1212.41,0.0001726,2]
[322979729,1713556282007,-1066.73,0.0001726,2]
[322979730,1713556282016,-500.0,0.0001726,2]
[322979731,1713556282025,-1154.9,0.0001726,2]
[322979732,1713556282035,-500.0,0.0001726,2]
[322979733,1713556282047,-684.29,0.0001726,2]
[322979734,1713556282057,-1997.79,0.0001726,2]
[322979735,1713556282066,-832.44,0.0001726,2]
[322979736,1713556282075,-500.0,0.0001726,2]
[322979737,1713556282086,-1339.92,0.0001726,2]
[322979738,1713556282096,-500.0,0.0001726,2]
[322979739,1713556282106,-676.62,0.0001726,2]
[322979740,1713556282116,-500.0,0.0001726,2]
[322979741,1713556282125,-592.72,0.0001726,2]
[322979742,1713556282135,-500.0,0.0001726,2]
[322979743,1713556282146,-1071.64,0.0001726,2]
[322979744,1713556282155,-500.0,0.0001726,2]
[322979745,1713556282165,-293.39,0.0001726,2]
[322979746,1713556282175,-695.4,0.0001726,2]
[322979747,1713556282185,-1005.05,0.0001726,2]
[322979748,1713556282194,-754.34,0.0001726,2]
[322979749,1713556282205,-500.0,0.0001726,2]
[322979750,1713556282214,-2418.22,0.0001726,2]
[322979751,1713556282223,-500.0,0.0001726,2]
[322979752,1713556282233,-500.0,0.0001726,2]
[322979753,1713556282243,-1312.98,0.0001726,2]
[322979754,1713556282252,-505.31,0.0001726,2]
[322979755,1713556282262,-769.77,0.0001726,2]
[322979756,1713556282271,-1140.54,0.0001726,2]
[322979757,1713556282281,-500.0,0.0001726,2]
[322979758,1713556282290,-2058.96,0.0001726,2]
[322979759,1713556282300,-500.0,0.0001726,2]
[322979760,1713556282309,-1121.14,0.0001726,2]
[322979761,1713556282319,-502.84,0.0001726,2]
[322979762,1713556282328,-500.0,0.0001726,2]
[322979763,1713556282338,-519.56,0.0001726,2]
[322979764,1713556282347,-781.22,0.0001726,2]
[322979765,1713556282357,-1229.3,0.0001726,2]
[322979766,1713556282366,-500.0,0.0001726,2]
[322979767,1713556282376,-574.59,0.0001726,2]
[322979768,1713556282385,-500.0,0.0001726,2]
[322979769,1713556282394,-500.0,0.0001726,2]
[322979770,1713556282404,-2434.28,0.0001726,2]
[322979771,1713556282414,-1162.62,0.0001726,2]
[322979772,1713556282424,-793.64,0.0001726,2]
[322979773,1713556282433,-500.0,0.0001726,2]
[322979774,1713556282444,-1028.33,0.0001726,2]
[322979775,1713556282454,-500.0,0.0001726,2]
[322979776,1713556282463,-500.0,0.0001726,2]
[322979777,1713556282472,-1634.32,0.0001726,2]
[322979778,1713556282481,-500.0,0.0001726,2]
[322979779,1713556282491,-594.24,0.0001726,2]
[322979780,1713556282500,-732.77,0.0001726,2]
[322979781,1713556282510,-607.65,0.0001726,2]
[322979782,1713556282519,-627.94,0.0001726,2]
[322979783,1713556282529,-917.52,0.0001726,2]
[322979784,1713556282539,-1253.38,0.0001726,2]
[322979785,1713556282548,-617.65665461,0.0001726,2]
[322979786,1713556282558,-611.35,0.0001726,2]
[322979787,1713556282567,-860.19,0.0001726,2]
[322979788,1713556282577,-500.0,0.0001726,2]
[322979789,1713556282587,-500.0,0.0001726,2]
[322979790,1713556282596,-592.87,0.0001726,2]
[322979791,1713556282605,-798.2,0.0001726,2]
[322979792,1713556282614,-655.42,0.0001726,2]
[322979793,1713556282623,-500.0,0.0001726,2]
[322979794,1713556282633,-1074.22,0.0001726,2]
[322979795,1713556282642,-1328.53,0.0001726,2]
[322979796,1713556282652,-500.0,0.0001726,2]
[322979797,1713556282661,-500.0,0.0001726,2]
[322979798,1713556282671,-500.0,0.0001726,2]
[322979799,1713556282681,-1452.94,0.0001726,2]
[322979800,1713556282690,-500.0,0.0001726,2]
[322979801,1713556282700,-500.0,0.0001726,2]
[322979802,1713556282709,-916.96,0.0001726,2]
[322979803,1713556282719,-1402.26,0.0001726,2]
[322979804,1713556282728,-781.75,0.0001726,2]
[322979805,1713556282737,-2329.4,0.0001726,2]
[322979806,1713556282747,-1062.38,0.0001726,2]
[322979807,1713556282756,-500.0,0.0001726,2]
[322979808,1713556282766,-650.97,0.0001726,2]
[322979809,1713556282776,-521.31,0.0001726,2]
[322979810,1713556282786,-500.0,0.0001726,2]
[322979811,1713556282795,-500.0,0.0001726,2]
[322979812,1713556282804,-616.68,0.0001726,2]
[322979813,1713556282814,-500.0,0.0001726,2]
[322979814,1713556282824,-500.0,0.0001726,2]
[322979815,1713556282833,-500.0,0.0001726,2]
[322979816,1713556282844,-500.0,0.0001726,2]
[322979817,1713556282853,-500.0,0.0001726,2]
[322979818,1713556282862,-1054.75,0.0001726,2]
[322979819,1713556282872,-589.55,0.0001726,2]
[322979820,1713556282881,-500.0,0.0001726,2]
[322979821,1713556282890,-1266.98,0.0001726,2]
[322979822,1713556282900,-500.0,0.0001726,2]
[322979823,1713556282909,-500.0,0.0001726,2]
[322979824,1713556282919,-1583.79,0.0001726,2]
[322979825,1713556282928,-526.37,0.0001726,2]
[322979826,1713556282938,-1254.22,0.0001726,2]
[322979827,1713556282947,-721.98,0.0001726,2]
[322979828,1713556282957,-727.72,0.0001726,2]
[322979829,1713556282966,-304.22614428,0.0001726,2]
[322979830,1713556282976,-881.05,0.0001726,2]
[322979831,1713556282985,-500.0,0.0001726,2]
[322979832,1713556282994,-1155.87,0.0001726,2]
[322979833,1713556283003,-525.09,0.0001726,2]
[322979834,1713556283012,-500.0,0.0001726,2]
[322979835,1713556283024,-1053.13,0.0001726,2]
[322979836,1713556283157,-744.39,0.0001726,2]
[322979837,1713556283167,-627.17,0.0001726,2]
[322979838,1713556283176,-559.7,0.0001726,2]
[322979839,1713556283185,-500.0,0.0001726,2]
[322979840,1713556283200,-1139.78,0.0001726,2]
[322979841,1713556283210,-500.0,0.0001726,2]
[322979842,1713556283219,-568.38,0.0001726,2]
[322979843,1713556283229,-1958.59,0.0001726,2]
[322979844,1713556283238,-1093.69,0.0001726,2]
[322979845,1713556283247,-591.41,0.0001726,2]
[322979846,1713556283256,-500.0,0.0001726,2]
[322979847,1713556283265,-613.25,0.0001726,2]
[322979848,1713556283274,-1249.35,0.0001726,2]
[322979849,1713556283284,-500.0,0.0001726,2]